[Event "Early-Titled-Tuesday-Blitz-April-23-2024"]
[Site "Chess.com"]
[Date "2024.04.23"]
[Round "4"]
[White "MarlonJodar"]
[Black "maurovargas01"]
[Result "1-0"]
[WhiteElo "2286"]
[BlackElo "1890"]
[TimeControl "180+1"]
[EndTime "8:39:23 PDT"]
[Termination "MarlonJodar won on time"]

1. e4 {[%clk 0:02:57.6]} 1... d5 {[%clk 0:02:58.6]} 2. exd5 {[%clk 0:02:57.1]}
2... Qxd5 {[%clk 0:02:57.7]} 3. Nc3 {[%clk 0:02:56.7]} 3... Qa5 {[%clk
0:02:57.9]} 4. d4 {[%clk 0:02:56.5]} 4... c6 {[%clk 0:02:56.7]} 5. Nf3 {[%clk
0:02:55.8]} 5... Nf6 {[%clk 0:02:56.6]} 6. Bc4 {[%clk 0:02:52.5]} 6... Bg4
{[%clk 0:02:56]} 7. h3 {[%clk 0:02:51.1]} 7... Bh5 {[%clk 0:02:55.5]} 8. g4
{[%clk 0:02:50]} 8... Bg6 {[%clk 0:02:55.5]} 9. Ne5 {[%clk 0:02:50.2]} 9... e6
{[%clk 0:02:55.2]} 10. Bd2 {[%clk 0:02:47.7]} 10... Qc7 {[%clk 0:02:52.7]} 11.
Qe2 {[%clk 0:02:46.9]} 11... Bd6 {[%clk 0:02:50.9]} 12. O-O-O {[%clk 0:02:45.7]}
12... Nbd7 {[%clk 0:02:45.5]} 13. f4 {[%clk 0:02:45]} 13... O-O-O {[%clk
0:02:28.9]} 14. h4 {[%clk 0:02:32.3]} 14... h5 {[%clk 0:02:16.4]} 15. Nxg6
{[%clk 0:02:25.5]} 15... fxg6 {[%clk 0:02:12.7]} 16. Bxe6 {[%clk 0:02:09.9]}
16... Bxf4 {[%clk 0:01:59.8]} 17. g5 {[%clk 0:02:08.9]} 17... Ng4 {[%clk
0:01:37]} 18. Bxg4 {[%clk 0:02:06.5]} 18... hxg4 {[%clk 0:01:36.2]} 19. Qxg4
{[%clk 0:02:07.4]} 19... Bd6 {[%clk 0:01:18.9]} 20. Qe6 {[%clk 0:01:59.1]} 20...
Kb8 {[%clk 0:01:07.6]} 21. Qxg6 {[%clk 0:01:58.6]} 21... Nf8 {[%clk 0:00:49.8]}
22. Qf5 {[%clk 0:01:55.7]} 22... g6 {[%clk 0:00:41.2]} 23. Qe4 {[%clk
0:01:50.1]} 23... Qg7 {[%clk 0:00:30]} 24. d5 {[%clk 0:00:58.8]} 24... c5 {[%clk
0:00:22.1]} 25. Nb5 {[%clk 0:00:55.9]} 25... Be5 {[%clk 0:00:15.1]} 26. Bc3
{[%clk 0:00:44.9]} 26... Bxc3 {[%clk 0:00:10.3]} 27. Nxc3 {[%clk 0:00:45.8]}
27... Ka8 {[%clk 0:00:07.3]} 28. d6 {[%clk 0:00:39.5]} 28... Nd7 {[%clk
0:00:02.4]} 29. Rhe1 {[%clk 0:00:36.1]} 1-0

[Event "Early-Titled-Tuesday-Blitz-April-23-2024"]
[Site "Chess.com"]
[Date "2024.04.23"]
[Round "4"]
[White "bescmelasti"]
[Black "lucasmito"]
[Result "1-0"]
[WhiteElo "2607"]
[BlackElo "2793"]
[TimeControl "180+1"]
[EndTime "8:39:24 PDT"]
[Termination "bescmelasti won by resignation"]

1. e4 {[%clk 0:03:00.9]} 1... e5 {[%clk 0:02:57.8]} 2. Nf3 {[%clk 0:03:00]} 2...
Nc6 {[%clk 0:02:57]} 3. Bb5 {[%clk 0:03:00.7]} 3... f5 {[%clk 0:02:56.7]} 4. d3
{[%clk 0:02:52.3]} 4... fxe4 {[%clk 0:02:56.2]} 5. dxe4 {[%clk 0:02:52.9]} 5...
Nf6 {[%clk 0:02:57.1]} 6. O-O {[%clk 0:02:47.8]} 6... d6 {[%clk 0:02:56.6]} 7.
Nc3 {[%clk 0:02:42.1]} 7... Be7 {[%clk 0:02:56.7]} 8. Bc4 {[%clk 0:02:30.3]}
8... Na5 {[%clk 0:02:56.9]} 9. Be2 {[%clk 0:02:20.8]} 9... O-O {[%clk
0:02:56.8]} 10. h3 {[%clk 0:02:13]} 10... Nc6 {[%clk 0:02:57.2]} 11. Bc4+ {[%clk
0:02:12.1]} 11... Kh8 {[%clk 0:02:57.3]} 12. a4 {[%clk 0:02:08.1]} 12... Qe8
{[%clk 0:02:56.5]} 13. a5 {[%clk 0:02:05.9]} 13... a6 {[%clk 0:02:51.1]} 14. Be3
{[%clk 0:02:06.4]} 14... Nh5 {[%clk 0:02:35.8]} 15. Nd5 {[%clk 0:02:03.3]} 15...
Bd8 {[%clk 0:02:36.5]} 16. Ra3 {[%clk 0:01:57.6]} 16... Ne7 {[%clk 0:02:31.9]}
17. Re1 {[%clk 0:01:16.6]} 17... Nxd5 {[%clk 0:02:11.3]} 18. Bxd5 {[%clk
0:01:17.5]} 18... Nf4 {[%clk 0:02:10.7]} 19. Bxf4 {[%clk 0:01:14.9]} 19... Rxf4
{[%clk 0:02:11.6]} 20. b4 {[%clk 0:01:13.2]} 20... Qg6 {[%clk 0:02:06.7]} 21.
Kh2 {[%clk 0:01:11.9]} 21... c6 {[%clk 0:02:01.9]} 22. Ba2 {[%clk 0:01:09]}
22... Bc7 {[%clk 0:01:52.5]} 23. Rae3 {[%clk 0:00:55.3]} 23... Bd7 {[%clk
0:01:07.2]} 24. Nxe5 {[%clk 0:00:49.4]} 24... dxe5 {[%clk 0:00:57.1]} 25. Qxd7
{[%clk 0:00:50.3]} 25... Rxf2 {[%clk 0:00:55.9]} 26. Rg3 {[%clk 0:00:49.6]}
26... Qf6 {[%clk 0:00:49.4]} 27. Qxc7 {[%clk 0:00:47.6]} 27... h5 {[%clk
0:00:50]} 28. Ree3 {[%clk 0:00:40.3]} 28... h4 {[%clk 0:00:48.7]} 29. Rgf3
{[%clk 0:00:40.4]} 29... Rxf3 {[%clk 0:00:47.8]} 30. Rxf3 {[%clk 0:00:41.3]}
30... Qg5 {[%clk 0:00:48]} 31. Qd7 {[%clk 0:00:26.3]} 31... Rd8 {[%clk
0:00:48.3]} 32. Qf5 {[%clk 0:00:25]} 32... Qxf5 {[%clk 0:00:42.1]} 33. Rxf5
{[%clk 0:00:24]} 33... g6 {[%clk 0:00:42.2]} 34. Rxe5 {[%clk 0:00:23.9]} 34...
Rd2 {[%clk 0:00:43.1]} 35. Bb3 {[%clk 0:00:24]} 35... Re2 {[%clk 0:00:42.8]} 36.
Re7 {[%clk 0:00:23.5]} 36... g5 {[%clk 0:00:42.6]} 37. e5 {[%clk 0:00:23.6]}
37... Re3 {[%clk 0:00:30.2]} 38. e6 {[%clk 0:00:22.4]} 38... Kg8 {[%clk
0:00:30.5]} 1-0

[Event "Early-Titled-Tuesday-Blitz-April-23-2024"]
[Site "Chess.com"]
[Date "2024.04.23"]
[Round "4"]
[White "PolandHussars"]
[Black "DamianoLew95"]
[Result "1/2-1/2"]
[WhiteElo "2591"]
[BlackElo "2798"]
[TimeControl "180+1"]
[EndTime "8:39:24 PDT"]
[Termination "Game drawn by repetition"]

1. e4 {[%clk 0:02:59.6]} 1... c5 {[%clk 0:02:57.7]} 2. Ne2 {[%clk 0:02:58.8]}
2... Nc6 {[%clk 0:02:52.6]} 3. g3 {[%clk 0:02:56.2]} 3... g6 {[%clk 0:02:51.9]}
4. Bg2 {[%clk 0:02:56.3]} 4... Bg7 {[%clk 0:02:52.5]} 5. c3 {[%clk 0:02:56.5]}
5... e5 {[%clk 0:02:39.3]} 6. d3 {[%clk 0:02:55.6]} 6... Nge7 {[%clk 0:02:36]}
7. Be3 {[%clk 0:02:54.1]} 7... b6 {[%clk 0:02:35.5]} 8. d4 {[%clk 0:02:54.2]}
8... exd4 {[%clk 0:02:20.4]} 9. cxd4 {[%clk 0:02:55.1]} 9... O-O {[%clk
0:02:18.8]} 10. Nbc3 {[%clk 0:02:54.7]} 10... cxd4 {[%clk 0:02:08.1]} 11. Nxd4
{[%clk 0:02:54.1]} 11... Ba6 {[%clk 0:02:04.1]} 12. Ndb5 {[%clk 0:02:49.3]}
12... Ne5 {[%clk 0:01:41.1]} 13. O-O {[%clk 0:02:42.7]} 13... Nc4 {[%clk
0:01:40.9]} 14. Bd4 {[%clk 0:02:38.1]} 14... Nc6 {[%clk 0:01:22.4]} 15. Bxg7
{[%clk 0:02:36.3]} 15... Kxg7 {[%clk 0:01:23.3]} 16. b3 {[%clk 0:02:34.6]} 16...
N4a5 {[%clk 0:01:11.5]} 17. Re1 {[%clk 0:02:32.2]} 17... Bxb5 {[%clk 0:01:02.4]}
18. Nxb5 {[%clk 0:02:31.8]} 18... Nb7 {[%clk 0:00:57.5]} 19. Qd2 {[%clk
0:02:17.3]} 19... Qe7 {[%clk 0:00:53]} 20. Rad1 {[%clk 0:02:16.1]} 20... Rfd8
{[%clk 0:00:51.8]} 21. e5 {[%clk 0:02:14.6]} 21... a6 {[%clk 0:00:45.1]} 22. Nd6
{[%clk 0:02:14.1]} 22... Nxd6 {[%clk 0:00:43]} 23. Qxd6 {[%clk 0:02:08.7]} 23...
Qxd6 {[%clk 0:00:43.1]} 24. Rxd6 {[%clk 0:02:08.3]} 24... Rac8 {[%clk
0:00:42.1]} 25. f4 {[%clk 0:02:03.9]} 25... Kf8 {[%clk 0:00:42.1]} 26. Red1
{[%clk 0:02:02.8]} 26... Ke7 {[%clk 0:00:41]} 27. Kf2 {[%clk 0:01:58.8]} 27...
Rc7 {[%clk 0:00:40.5]} 28. R1d2 {[%clk 0:01:52.6]} 28... b5 {[%clk 0:00:39]} 29.
Ke3 {[%clk 0:01:42.6]} 29... Rdc8 {[%clk 0:00:36]} 30. Bh3 {[%clk 0:01:34.7]}
30... Nb8 {[%clk 0:00:34.3]} 31. Bg4 {[%clk 0:01:22.5]} 31... h5 {[%clk
0:00:33.5]} 32. Bh3 {[%clk 0:01:21.9]} 32... Rb7 {[%clk 0:00:31.5]} 33. f5
{[%clk 0:01:19.5]} 33... gxf5 {[%clk 0:00:28.8]} 34. Bxf5 {[%clk 0:01:20.4]}
34... Rbc7 {[%clk 0:00:28.4]} 35. Rh6 {[%clk 0:01:19.1]} 35... Rc5 {[%clk
0:00:26.2]} 36. Kf4 {[%clk 0:01:18.6]} 36... R8c7 {[%clk 0:00:19.9]} 37. Rxh5
{[%clk 0:01:17.5]} 37... Nc6 {[%clk 0:00:19.8]} 38. Bg4 {[%clk 0:01:11.7]} 38...
Nb4 {[%clk 0:00:18.4]} 39. Rh7 {[%clk 0:01:08.7]} 39... Nd5+ {[%clk 0:00:17.4]}
40. Kg5 {[%clk 0:01:02.8]} 40... Nc3 {[%clk 0:00:13.9]} 41. Kf4 {[%clk
0:00:56.9]} 41... Nd5+ {[%clk 0:00:14.1]} 42. Kg5 {[%clk 0:00:56.5]} 42... Nc3
{[%clk 0:00:14]} 43. Kf4 {[%clk 0:00:55.7]} 43... Nd5+ {[%clk 0:00:14.2]}
1/2-1/2

[Event "Early-Titled-Tuesday-Blitz-April-23-2024"]
[Site "Chess.com"]
[Date "2024.04.23"]
[Round "4"]
[White "yaguigor"]
[Black "WCM-Mexicana"]
[Result "1/2-1/2"]
[WhiteElo "2601"]
[BlackElo "2376"]
[TimeControl "180+1"]
[EndTime "8:39:26 PDT"]
[Termination "Game drawn by repetition"]

1. d4 {[%clk 0:03:00.9]} 1... d5 {[%clk 0:02:58.9]} 2. c4 {[%clk 0:03:00.1]}
2... c6 {[%clk 0:02:57.3]} 3. Nc3 {[%clk 0:02:59.3]} 3... g6 {[%clk 0:02:57]} 4.
Nf3 {[%clk 0:02:50.5]} 4... Bg7 {[%clk 0:02:55.4]} 5. cxd5 {[%clk 0:02:45.1]}
5... cxd5 {[%clk 0:02:55]} 6. Bf4 {[%clk 0:02:45.8]} 6... Nf6 {[%clk 0:02:53.8]}
7. e3 {[%clk 0:02:44.1]} 7... O-O {[%clk 0:02:51.6]} 8. h3 {[%clk 0:02:34]} 8...
Nc6 {[%clk 0:02:45.7]} 9. Be2 {[%clk 0:02:31.8]} 9... a6 {[%clk 0:02:36.5]} 10.
Rc1 {[%clk 0:02:27.4]} 10... Bd7 {[%clk 0:02:21.7]} 11. O-O {[%clk 0:02:21.8]}
11... b5 {[%clk 0:02:19]} 12. Ne5 {[%clk 0:02:20]} 12... Rc8 {[%clk 0:02:12.8]}
13. Bf3 {[%clk 0:02:03.1]} 13... e6 {[%clk 0:02:09.3]} 14. Nd3 {[%clk 0:02:01]}
14... Na5 {[%clk 0:01:45]} 15. Nc5 {[%clk 0:01:58.9]} 15... Qb6 {[%clk
0:01:45.5]} 16. b3 {[%clk 0:01:55.2]} 16... Nb7 {[%clk 0:01:44.6]} 17. b4 {[%clk
0:01:53.4]} 17... a5 {[%clk 0:01:44.4]} 18. a3 {[%clk 0:01:53.1]} 18... axb4
{[%clk 0:01:43]} 19. axb4 {[%clk 0:01:53.2]} 19... Ra8 {[%clk 0:01:43.5]} 20.
Qe2 {[%clk 0:01:50.7]} 20... Nd6 {[%clk 0:01:40.6]} 21. Bxd6 {[%clk 0:01:41.6]}
21... Qxd6 {[%clk 0:01:41.5]} 22. Nxb5 {[%clk 0:01:41.5]} 22... Bxb5 {[%clk
0:01:40.3]} 23. Qxb5 {[%clk 0:01:40.4]} 23... Rfb8 {[%clk 0:01:39.3]} 24. Qd3
{[%clk 0:01:35.5]} 24... Rxb4 {[%clk 0:01:39]} 25. Rb1 {[%clk 0:01:34.8]} 25...
Rab8 {[%clk 0:01:34.8]} 26. Rxb4 {[%clk 0:01:31.6]} 26... Rxb4 {[%clk
0:01:35.7]} 27. Ra1 {[%clk 0:01:31.3]} 27... h6 {[%clk 0:01:25.9]} 28. Ra8+
{[%clk 0:01:27.8]} 28... Kh7 {[%clk 0:01:25.1]} 29. g3 {[%clk 0:01:24.5]} 29...
Rb8 {[%clk 0:01:20.8]} 30. Ra7 {[%clk 0:01:22.8]} 30... Kg8 {[%clk 0:01:17.1]}
31. Kg2 {[%clk 0:01:15.8]} 31... Bf8 {[%clk 0:01:17.4]} 32. h4 {[%clk 0:01:06]}
32... Qb6 {[%clk 0:01:16.7]} 33. Ra6 {[%clk 0:01:02.9]} 33... Qb1 {[%clk
0:01:15.8]} 34. Qxb1 {[%clk 0:00:46.2]} 34... Rxb1 {[%clk 0:01:16.7]} 35. Nd3
{[%clk 0:00:38.7]} 35... Rb7 {[%clk 0:01:08.5]} 36. Ne5 {[%clk 0:00:37.1]} 36...
Nd7 {[%clk 0:01:06.7]} 37. Nc6 {[%clk 0:00:34.6]} 37... Nb8 {[%clk 0:01:02.3]}
38. Nxb8 {[%clk 0:00:33.4]} 38... Rxb8 {[%clk 0:01:03.2]} 39. Ra7 {[%clk
0:00:33.4]} 39... Re8 {[%clk 0:01:02]} 40. Be2 {[%clk 0:00:32.2]} 40... Re7
{[%clk 0:01:01.3]} 41. Ra8 {[%clk 0:00:31.8]} 41... Rc7 {[%clk 0:00:58.4]} 42.
Bb5 {[%clk 0:00:29.2]} 42... Kg7 {[%clk 0:00:56.4]} 43. Kf3 {[%clk 0:00:27.4]}
43... Be7 {[%clk 0:00:56.6]} 44. Be8 {[%clk 0:00:25]} 44... Bf6 {[%clk
0:00:55.9]} 45. Kg2 {[%clk 0:00:23.8]} 45... Be7 {[%clk 0:00:56.2]} 46. Rb8
{[%clk 0:00:21.3]} 46... Bf6 {[%clk 0:00:56.2]} 47. Bb5 {[%clk 0:00:19.7]} 47...
Be7 {[%clk 0:00:56.3]} 48. Be8 {[%clk 0:00:19.5]} 48... Bf6 {[%clk 0:00:56.6]}
49. Kf3 {[%clk 0:00:19.4]} 49... Be7 {[%clk 0:00:56.8]} 50. Kg2 {[%clk
0:00:19.6]} 1/2-1/2

[Event "Early-Titled-Tuesday-Blitz-April-23-2024"]
[Site "Chess.com"]
[Date "2024.04.23"]
[Round "4"]
[White "Aragon"]
[Black "Heinza9"]
[Result "0-1"]
[WhiteElo "2078"]
[BlackElo "2320"]
[TimeControl "180+1"]
[EndTime "8:39:26 PDT"]
[Termination "Heinza9 won by resignation"]

1. e4 {[%clk 0:03:00.9]} 1... e5 {[%clk 0:02:59.9]} 2. Nf3 {[%clk 0:03:00.3]}
2... Nc6 {[%clk 0:02:59.9]} 3. Nc3 {[%clk 0:03:00.6]} 3... Nf6 {[%clk
0:02:59.6]} 4. Be2 {[%clk 0:03:00.9]} 4... d5 {[%clk 0:02:58.6]} 5. exd5 {[%clk
0:03:00.5]} 5... Nxd5 {[%clk 0:02:58.9]} 6. O-O {[%clk 0:03:00.8]} 6... Be7
{[%clk 0:02:59.2]} 7. Bb5 {[%clk 0:02:59.3]} 7... f6 {[%clk 0:02:53.1]} 8. d4
{[%clk 0:02:57.4]} 8... Nxc3 {[%clk 0:02:43.3]} 9. bxc3 {[%clk 0:02:56.3]} 9...
e4 {[%clk 0:02:43.3]} 10. Nh4 {[%clk 0:02:39.8]} 10... O-O {[%clk 0:02:40.8]}
11. Bc4+ {[%clk 0:02:32]} 11... Kh8 {[%clk 0:02:39.7]} 12. f3 {[%clk 0:02:15.1]}
12... f5 {[%clk 0:02:37]} 13. Ng6+ {[%clk 0:02:11.1]} 13... hxg6 {[%clk
0:02:36.3]} 14. fxe4 {[%clk 0:02:08.3]} 14... fxe4 {[%clk 0:02:24]} 15. Bf4
{[%clk 0:02:06.3]} 15... Bd6 {[%clk 0:02:18.8]} 16. Qd2 {[%clk 0:02:03.8]} 16...
Bf5 {[%clk 0:02:14.2]} 17. Qe3 {[%clk 0:01:51.8]} 17... Na5 {[%clk 0:01:58.4]}
18. Be2 {[%clk 0:01:51.1]} 18... Qd7 {[%clk 0:01:44.1]} 19. Rab1 {[%clk
0:01:48]} 19... b6 {[%clk 0:01:43.8]} 20. Qg3 {[%clk 0:01:38]} 20... Bxf4 {[%clk
0:01:34.6]} 21. Rxf4 {[%clk 0:01:36.3]} 21... Qd6 {[%clk 0:01:27.8]} 22. Rb5
{[%clk 0:01:26.2]} 22... Bd7 {[%clk 0:01:11.7]} 23. Re5 {[%clk 0:01:19.1]} 23...
Rxf4 {[%clk 0:01:07.4]} 24. Qxf4 {[%clk 0:01:18.2]} 24... Rf8 {[%clk 0:01:04]}
25. Qxe4 {[%clk 0:01:18]} 25... Bf5 {[%clk 0:01:00]} 26. Qh4+ {[%clk 0:01:14.4]}
26... Kg8 {[%clk 0:01:00.1]} 27. Bf3 {[%clk 0:01:08.3]} 27... Be6 {[%clk
0:00:52.5]} 28. Be4 {[%clk 0:01:00.9]} 28... Bc4 {[%clk 0:00:49]} 29. Bf3 {[%clk
0:00:40.8]} 29... Qf6 {[%clk 0:00:46.9]} 30. Qg3 {[%clk 0:00:37.3]} 30... Nc6
{[%clk 0:00:43.4]} 31. Rg5 {[%clk 0:00:31.9]} 31... Ne7 {[%clk 0:00:41]} 32. h4
{[%clk 0:00:29.4]} 32... c5 {[%clk 0:00:39.2]} 33. Qf2 {[%clk 0:00:27.9]} 33...
Nf5 {[%clk 0:00:37.5]} 34. Kh2 {[%clk 0:00:21.8]} 34... cxd4 {[%clk 0:00:36.9]}
35. cxd4 {[%clk 0:00:22.3]} 35... Qxd4 {[%clk 0:00:36.4]} 36. Qe1 {[%clk
0:00:21.1]} 36... Qf4+ {[%clk 0:00:35.5]} 37. Kh1 {[%clk 0:00:19.8]} 37... Qxh4+
{[%clk 0:00:35.5]} 38. Qxh4 {[%clk 0:00:19.2]} 38... Nxh4 {[%clk 0:00:35.9]} 39.
Rg4 {[%clk 0:00:20.1]} 39... Nxf3 {[%clk 0:00:35.8]} 40. gxf3 {[%clk 0:00:20.6]}
40... b5 {[%clk 0:00:36]} 41. Rd4 {[%clk 0:00:20.1]} 41... Rxf3 {[%clk
0:00:35.5]} 42. Kg2 {[%clk 0:00:21]} 42... Rc3 {[%clk 0:00:35.2]} 0-1

[Event "Early-Titled-Tuesday-Blitz-April-23-2024"]
[Site "Chess.com"]
[Date "2024.04.23"]
[Round "4"]
[White "Mops_2004"]
[Black "LeRoidesChampions"]
[Result "1-0"]
[WhiteElo "2894"]
[BlackElo "2616"]
[TimeControl "180+1"]
[EndTime "8:39:28 PDT"]
[Termination "Mops_2004 won on time"]

1. g3 {[%clk 0:03:00.9]} 1... g6 {[%clk 0:02:55.9]} 2. Bg2 {[%clk 0:03:00.5]}
2... Bg7 {[%clk 0:02:56.8]} 3. d4 {[%clk 0:03:01.1]} 3... Nf6 {[%clk 0:02:57.4]}
4. e4 {[%clk 0:03:01]} 4... O-O {[%clk 0:02:58.3]} 5. Nc3 {[%clk 0:03:01.1]}
5... d6 {[%clk 0:02:59]} 6. Nf3 {[%clk 0:03:00.9]} 6... Nc6 {[%clk 0:02:59.3]}
7. d5 {[%clk 0:03:00]} 7... Nb4 {[%clk 0:02:58.6]} 8. h3 {[%clk 0:02:56.7]} 8...
a5 {[%clk 0:02:57.5]} 9. O-O {[%clk 0:02:55.7]} 9... c6 {[%clk 0:02:51.9]} 10.
Re1 {[%clk 0:02:54.1]} 10... Bd7 {[%clk 0:02:47.3]} 11. Bg5 {[%clk 0:02:44.8]}
11... h6 {[%clk 0:02:45.8]} 12. Be3 {[%clk 0:02:44.8]} 12... Na6 {[%clk
0:02:32.4]} 13. Qd2 {[%clk 0:02:44]} 13... Kh7 {[%clk 0:02:31.3]} 14. dxc6
{[%clk 0:02:40.9]} 14... Bxc6 {[%clk 0:02:31.1]} 15. Nd4 {[%clk 0:02:40.6]}
15... Nd7 {[%clk 0:02:25.3]} 16. f4 {[%clk 0:02:32.6]} 16... Rc8 {[%clk
0:02:17.7]} 17. a3 {[%clk 0:02:28.9]} 17... Nac5 {[%clk 0:02:12.3]} 18. b4
{[%clk 0:02:14.6]} 18... axb4 {[%clk 0:01:44.5]} 19. axb4 {[%clk 0:02:13.6]}
19... Ne6 {[%clk 0:01:44.4]} 20. b5 {[%clk 0:02:13.4]} 20... Nxd4 {[%clk
0:00:57.1]} 21. Bxd4 {[%clk 0:02:14.3]} 21... e5 {[%clk 0:00:49.4]} 22. fxe5
{[%clk 0:02:09]} 22... Nxe5 {[%clk 0:00:47.4]} 23. bxc6 {[%clk 0:02:08.6]} 23...
Rxc6 {[%clk 0:00:48.3]} 24. Nd5 {[%clk 0:02:04.6]} 24... Qc8 {[%clk 0:00:43.6]}
25. c3 {[%clk 0:01:55.6]} 25... Qe6 {[%clk 0:00:37.4]} 26. Rf1 {[%clk 0:01:52]}
26... Rfc8 {[%clk 0:00:36.3]} 27. Rab1 {[%clk 0:01:47.7]} 27... Nc4 {[%clk
0:00:17.5]} 28. Qf2 {[%clk 0:01:46.4]} 28... Ne5 {[%clk 0:00:07.2]} 29. Rxb7
{[%clk 0:01:44.5]} 29... h5 {[%clk 0:00:06.8]} 30. Bxe5 {[%clk 0:01:43.7]} 30...
Bxe5 {[%clk 0:00:04.3]} 31. Qxf7+ {[%clk 0:01:43.6]} 31... Qxf7 {[%clk 0:00:05]}
32. Rfxf7+ {[%clk 0:01:44.1]} 32... Kh8 {[%clk 0:00:05.6]} 33. Ne7 {[%clk
0:01:42.1]} 33... Rxc3 {[%clk 0:00:03.3]} 34. Nxc8 {[%clk 0:01:38.6]} 34... Rxc8
{[%clk 0:00:02.6]} 35. Rb3 {[%clk 0:01:29.6]} 35... Rc1+ {[%clk 0:00:01.6]} 36.
Rf1 {[%clk 0:01:29.6]} 36... Rc2 {[%clk 0:00:01.5]} 37. h4 {[%clk 0:01:29.8]}
37... Kg7 {[%clk 0:00:02.3]} 38. Rbf3 {[%clk 0:01:28.4]} 38... Kg8 {[%clk
0:00:01.5]} 39. R1f2 {[%clk 0:01:28.2]} 39... Bd4 {[%clk 0:00:01.7]} 40. Bf1
{[%clk 0:01:26.3]} 40... Rd2 {[%clk 0:00:01.3]} 41. Kg2 {[%clk 0:01:26.5]} 41...
Bxf2 {[%clk 0:00:01.8]} 42. Rxf2 {[%clk 0:01:27.4]} 42... Rd4 {[%clk 0:00:02.5]}
43. Kf3 {[%clk 0:01:27.7]} 43... d5 {[%clk 0:00:02.5]} 44. exd5 {[%clk 0:01:26]}
44... Kg7 {[%clk 0:00:02.8]} 45. Ke3 {[%clk 0:01:24.1]} 45... Rxd5 {[%clk
0:00:03.1]} 46. Bd3 {[%clk 0:01:24.8]} 46... Re5+ {[%clk 0:00:03.4]} 47. Be4
{[%clk 0:01:25.3]} 47... Re6 {[%clk 0:00:04]} 48. Rc2 {[%clk 0:01:24.7]} 48...
Rb6 {[%clk 0:00:04.3]} 49. Rc6 {[%clk 0:01:24.6]} 49... Rxc6 {[%clk 0:00:01.7]}
50. Bxc6 {[%clk 0:01:25.5]} 50... Kf6 {[%clk 0:00:02.6]} 51. Kf4 {[%clk
0:01:25.3]} 51... Kg7 {[%clk 0:00:02]} 52. Kg5 {[%clk 0:01:25.6]} 1-0

[Event "Early-Titled-Tuesday-Blitz-April-23-2024"]
[Site "Chess.com"]
[Date "2024.04.23"]
[Round "4"]
[White "GMAkobianSTL"]
[Black "dropstoneDP"]
[Result "1/2-1/2"]
[WhiteElo "2809"]
[BlackElo "3022"]
[TimeControl "180+1"]
[EndTime "8:39:30 PDT"]
[Termination "Game drawn by repetition"]

1. d4 {[%clk 0:03:00.9]} 1... d5 {[%clk 0:02:59.9]} 2. c4 {[%clk 0:03:00.7]}
2... dxc4 {[%clk 0:03:00.8]} 3. e3 {[%clk 0:03:00.5]} 3... Nf6 {[%clk 0:03:01]}
4. Bxc4 {[%clk 0:03:00]} 4... e6 {[%clk 0:03:01.7]} 5. Nf3 {[%clk 0:02:59.9]}
5... a6 {[%clk 0:03:02.3]} 6. O-O {[%clk 0:02:59.8]} 6... c5 {[%clk 0:03:02.9]}
7. dxc5 {[%clk 0:02:59.8]} 7... Bxc5 {[%clk 0:03:02.1]} 8. Qxd8+ {[%clk
0:02:59.2]} 8... Kxd8 {[%clk 0:03:03]} 9. Rd1+ {[%clk 0:02:58.7]} 9... Ke7
{[%clk 0:03:03.1]} 10. a3 {[%clk 0:02:59]} 10... b5 {[%clk 0:02:53.1]} 11. Be2
{[%clk 0:02:56.2]} 11... Bb7 {[%clk 0:02:51.7]} 12. b4 {[%clk 0:02:55.7]} 12...
Bb6 {[%clk 0:02:52.2]} 13. Bb2 {[%clk 0:02:52]} 13... Nbd7 {[%clk 0:02:50.1]}
14. Nbd2 {[%clk 0:02:51.2]} 14... Rac8 {[%clk 0:02:43.8]} 15. Nd4 {[%clk
0:02:48.1]} 15... Rc7 {[%clk 0:02:33.8]} 16. Rac1 {[%clk 0:02:39.1]} 16... Rhc8
{[%clk 0:02:33]} 17. Rxc7 {[%clk 0:02:37.7]} 17... Rxc7 {[%clk 0:02:33.9]} 18.
N2b3 {[%clk 0:02:30.1]} 18... Bd5 {[%clk 0:02:31.8]} 19. Rc1 {[%clk 0:02:20.6]}
19... Rxc1+ {[%clk 0:02:24.8]} 20. Nxc1 {[%clk 0:02:18.8]} 20... Ne4 {[%clk
0:02:17]} 21. Nd3 {[%clk 0:01:58.9]} 21... Bc4 {[%clk 0:02:13.8]} 22. f3 {[%clk
0:01:55]} 22... Nd6 {[%clk 0:02:13.4]} 23. Kf2 {[%clk 0:01:53.8]} 23... f6
{[%clk 0:01:51.8]} 24. Nc6+ {[%clk 0:01:49.6]} 24... Kf7 {[%clk 0:01:51.7]} 25.
Bd4 {[%clk 0:01:46.1]} 25... Bxd4 {[%clk 0:01:44.1]} 26. Nxd4 {[%clk 0:01:44.9]}
26... e5 {[%clk 0:01:43.3]} 27. Nc6 {[%clk 0:01:43.8]} 27... Bd5 {[%clk
0:01:35.1]} 28. Na5 {[%clk 0:01:39.9]} 28... Nc4 {[%clk 0:01:35.5]} 29. e4
{[%clk 0:01:25.5]} 29... Be6 {[%clk 0:01:26.8]} 30. Nxc4 {[%clk 0:01:22]} 30...
Bxc4 {[%clk 0:01:27.7]} 31. Ke3 {[%clk 0:01:07]} 31... Ke6 {[%clk 0:01:26.8]}
32. Nb2 {[%clk 0:00:57]} 32... Bxe2 {[%clk 0:01:25.7]} 33. Kxe2 {[%clk
0:00:57.9]} 33... Nb6 {[%clk 0:01:07.6]} 34. Nd3 {[%clk 0:00:56.7]} 34... Nc4
{[%clk 0:01:03.4]} 35. Nc5+ {[%clk 0:00:56.5]} 35... Kd6 {[%clk 0:01:03]} 36.
Nxa6 {[%clk 0:00:56.6]} 36... Nxa3 {[%clk 0:01:03.3]} 37. Kd3 {[%clk 0:00:56.7]}
37... Nc4 {[%clk 0:00:55.4]} 38. Nc5 {[%clk 0:00:56.2]} 38... Na5 {[%clk
0:00:23.6]} 39. bxa5 {[%clk 0:00:42.3]} 39... Kxc5 {[%clk 0:00:24.5]} 40. Kc3
{[%clk 0:00:39.5]} 40... b4+ {[%clk 0:00:24.8]} 41. Kb3 {[%clk 0:00:39.5]} 41...
Kb5 {[%clk 0:00:25.4]} 42. a6 {[%clk 0:00:39]} 42... Kxa6 {[%clk 0:00:26]} 43.
Kxb4 {[%clk 0:00:38.1]} 43... Kb6 {[%clk 0:00:26.6]} 44. Kc4 {[%clk 0:00:37.7]}
44... Kc6 {[%clk 0:00:27]} 45. g4 {[%clk 0:00:36.3]} 45... g5 {[%clk 0:00:26.3]}
46. h3 {[%clk 0:00:36.1]} 46... h6 {[%clk 0:00:26]} 47. Kb4 {[%clk 0:00:36.7]}
47... Kb6 {[%clk 0:00:26.4]} 48. Kc4 {[%clk 0:00:36.8]} 48... Kc6 {[%clk
0:00:27.1]} 49. Kb4 {[%clk 0:00:37.2]} 49... Kb6 {[%clk 0:00:27.7]} 50. Kc4
{[%clk 0:00:37.8]} 50... Kc6 {[%clk 0:00:28.3]} 1/2-1/2